[Event "Titled Tuesday Blitz March 14 Late 2023"]
[White "Vargas Pereda, Jesus Manue"]
[Black "mestrefeitosa19"]
[WhiteFideId "5115710"]
[WhiteElo "1914"]
[BlackElo "2243"]
[Result "1-0"]
[Round "08"]
[TimeControl "180+2"]
[Date "2023.03.14"]
[WhiteClock "0:00:54"]
[BlackClock "0:00:09"]

1. d4 {[%clk 0:03:00]}  d5 {[%clk 0:03:00]} 2. Bf4 {[%clk 0:03:00]}  e6 {[%clk 0:03:00]} 3. e3 {[%clk 0:03:00]}  Nf6 {[%clk 0:03:00]} 4. Nd2 {[%clk 0:02:59]}  Be7 {[%clk 0:03:01]} 5. Ngf3 {[%clk 0:02:59]}  O-O {[%clk 0:03:02]} 6. Bd3 {[%clk 0:02:58]}  b6 {[%clk 0:03:02]} 7. Ne5 {[%clk 0:02:57]}  Bb7 {[%clk 0:03:02]} 8. Qf3 {[%clk 0:02:52]}  Nbd7 {[%clk 0:03:02]} 9. Qh3 {[%clk 0:02:49]}  Nxe5 {[%clk 0:02:59]} 10. dxe5 {[%clk 0:02:48]}  Ne4 {[%clk 0:02:59]} 11. f3 {[%clk 0:02:46]}  Bh4+ {[%clk 0:01:55]} 12. g3 {[%clk 0:02:33]}  Ng5 {[%clk 0:01:23]} 13. Bxg5 {[%clk 0:02:29]}  Qxg5 {[%clk 0:01:15]} 14. f4 {[%clk 0:02:28]}  Qe7 {[%clk 0:01:10]} 15. Qxh4 {[%clk 0:02:27]}  Qxh4 {[%clk 0:01:10]} 16. gxh4 {[%clk 0:02:27]}  c5 {[%clk 0:01:11]} 17. Rg1 {[%clk 0:02:25]}  a5 {[%clk 0:01:08]} 18. O-O-O {[%clk 0:02:24]}  Bc6 {[%clk 0:01:07]} 19. e4 {[%clk 0:02:22]}  c4 {[%clk 0:01:06]} 20. exd5 {[%clk 0:02:18]}  exd5 {[%clk 0:01:04]} 21. Bf5 {[%clk 0:02:13]}  b5 {[%clk 0:01:02]} 22. h5 {[%clk 0:02:10]}  b4 {[%clk 0:00:58]} 23. h4 {[%clk 0:02:08]}  a4 {[%clk 0:00:56]} 24. h6 {[%clk 0:02:06]}  g6 {[%clk 0:00:55]} 25. h5 {[%clk 0:02:05]}  c3 {[%clk 0:00:43]} 26. Nb1 {[%clk 0:01:52]}  cxb2+ {[%clk 0:00:30]} 27. Kxb2 {[%clk 0:01:51]}  Rab8 {[%clk 0:00:30]} 28. hxg6 {[%clk 0:01:47]}  fxg6 {[%clk 0:00:29]} 29. Bxg6 {[%clk 0:01:46]}  hxg6 {[%clk 0:00:29]} 30. Rxg6+ {[%clk 0:01:45]}  Kh8 {[%clk 0:00:30]} 31. Rxc6 {[%clk 0:01:45]}  b3 {[%clk 0:00:29]} 32. axb3 {[%clk 0:01:42]}  axb3 {[%clk 0:00:29]} 33. Rxd5 {[%clk 0:01:35]}  Rxf4 {[%clk 0:00:30]} 34. cxb3 {[%clk 0:01:29]}  Rf3 {[%clk 0:00:30]} 35. Nd2 {[%clk 0:01:29]}  Rf2 {[%clk 0:00:30]} 36. Rd7 {[%clk 0:01:27]}  Re2 {[%clk 0:00:29]} 37. e6 {[%clk 0:01:26]}  Re8 {[%clk 0:00:27]} 38. b4 {[%clk 0:01:14]}  R8xe6 {[%clk 0:00:23]} 39. Rxe6 {[%clk 0:01:13]}  Rxe6 {[%clk 0:00:23]} 40. b5 {[%clk 0:01:11]}  Rxh6 {[%clk 0:00:22]} 41. Kc3 {[%clk 0:01:11]}  Kg8 {[%clk 0:00:22]} 42. Kb4 {[%clk 0:01:11]}  Kf8 {[%clk 0:00:23]} 43. Nc4 {[%clk 0:01:10]}  Ke8 {[%clk 0:00:23]} 44. Rd6 {[%clk 0:01:08]}  Rh7 {[%clk 0:00:23]} 45. Kc5 {[%clk 0:01:07]}  Rh5+ {[%clk 0:00:22]} 46. Kc6 {[%clk 0:01:06]}  Rh4 {[%clk 0:00:22]} 47. Ne5 {[%clk 0:01:06]}  Re4 {[%clk 0:00:21]} 48. Nd7 {[%clk 0:01:04]}  Rc4+ {[%clk 0:00:17]} 49. Nc5 {[%clk 0:01:04]}  Ke7 {[%clk 0:00:14]} 50. Rd7+ {[%clk 0:01:02]}  Ke8 {[%clk 0:00:13]} 51. Rc7 {[%clk 0:00:59]}  Kd8 {[%clk 0:00:13]} 52. b6 {[%clk 0:00:59]}  Rc1 {[%clk 0:00:12]} 53. Rd7+ {[%clk 0:00:59]}  Ke8 {[%clk 0:00:10]} 54. b7 {[%clk 0:00:55]}  Rb1 {[%clk 0:00:09]} 55. Rc7 {[%clk 0:00:54]} 1-0


[Site "https://www.chess.com"]

[Event "Titled Tuesday Blitz March 14 Late 2023"]
[White "Clawitter, Craig"]
[Black "tandercat"]
[WhiteFideId "2023105"]
[WhiteElo "2239"]
[BlackElo "1935"]
[Result "1-0"]
[Round "08"]
[TimeControl "180+2"]
[Date "2023.03.14"]
[WhiteClock "0:02:45"]
[BlackClock "0:02:48"]

1. e4 {[%clk 0:02:57]}  c5 {[%clk 0:02:59]} 2. Nf3 {[%clk 0:02:56]}  Nc6 {[%clk 0:03:00]} 3. d4 {[%clk 0:02:56]}  cxd4 {[%clk 0:03:00]} 4. Nxd4 {[%clk 0:02:57]}  e5 {[%clk 0:03:00]} 5. Nb5 {[%clk 0:02:58]}  d6 {[%clk 0:03:00]} 6. N1c3 {[%clk 0:02:58]}  a6 {[%clk 0:03:00]} 7. Na3 {[%clk 0:02:59]}  Be7 {[%clk 0:03:01]} 8. Nc4 {[%clk 0:02:53]}  b5 {[%clk 0:03:00]} 9. Ne3 {[%clk 0:02:53]}  Nf6 {[%clk 0:03:00]} 10. Ned5 {[%clk 0:02:52]}  Nxd5 {[%clk 0:02:58]} 11. Nxd5 {[%clk 0:02:51]}  Bg5 {[%clk 0:02:54]} 12. Bxg5 {[%clk 0:02:45]}  Qxg5 {[%clk 0:02:48]} 13. Nc7+ {[%clk 0:02:45]} 1-0


[Site "https://www.chess.com"]

[Event "Titled Tuesday Blitz March 14 Late 2023"]
[White "Elissalt Cardenas, Hector"]
[Black "lisjakzlatko1"]
[WhiteFideId "3500632"]
[WhiteElo "2202"]
[BlackElo "2141"]
[Result "1-0"]
[Round "08"]
[TimeControl "180+2"]
[Date "2023.03.14"]
[WhiteClock "0:00:54"]
[BlackClock "0:00:02"]

1. d4 {[%clk 0:03:00]}  d6 {[%clk 0:02:59]} 2. Nf3 {[%clk 0:03:00]}  Bg4 {[%clk 0:02:58]} 3. e3 {[%clk 0:03:00]}  Nd7 {[%clk 0:02:55]} 4. Be2 {[%clk 0:03:01]}  e5 {[%clk 0:02:54]} 5. O-O {[%clk 0:03:01]}  f5 {[%clk 0:02:50]} 6. dxe5 {[%clk 0:03:00]}  dxe5 {[%clk 0:02:49]} 7. e4 {[%clk 0:02:58]}  f4 {[%clk 0:02:39]} 8. h3 {[%clk 0:02:55]}  Bh5 {[%clk 0:02:24]} 9. Nc3 {[%clk 0:02:43]}  c6 {[%clk 0:02:22]} 10. Nh2 {[%clk 0:02:24]}  Bf7 {[%clk 0:02:16]} 11. b3 {[%clk 0:02:17]}  Ngf6 {[%clk 0:02:08]} 12. Ng4 {[%clk 0:02:16]}  Qa5 {[%clk 0:01:58]} 13. Bb2 {[%clk 0:02:15]}  O-O-O {[%clk 0:01:49]} 14. Qe1 {[%clk 0:02:13]}  h5 {[%clk 0:01:35]} 15. Nxf6 {[%clk 0:02:05]}  gxf6 {[%clk 0:01:27]} 16. Bf3 {[%clk 0:01:44]}  Be7 {[%clk 0:01:10]} 17. Qe2 {[%clk 0:01:44]}  Rdg8 {[%clk 0:01:05]} 18. a3 {[%clk 0:01:31]}  Rg7 {[%clk 0:00:43]} 19. b4 {[%clk 0:01:31]}  Qc7 {[%clk 0:00:36]} 20. b5 {[%clk 0:01:30]}  Rhg8 {[%clk 0:00:28]} 21. bxc6 {[%clk 0:01:29]}  Qxc6 {[%clk 0:00:27]} 22. Nb5 {[%clk 0:01:25]}  Kb8 {[%clk 0:00:25]} 23. a4 {[%clk 0:01:23]}  Bc4 {[%clk 0:00:22]} 24. Qd2 {[%clk 0:01:17]}  Bxf1 {[%clk 0:00:21]} 25. Rxf1 {[%clk 0:01:16]}  a6 {[%clk 0:00:21]} 26. Na3 {[%clk 0:01:12]}  Nc5 {[%clk 0:00:20]} 27. Qe2 {[%clk 0:01:09]}  Qxa4 {[%clk 0:00:19]} 28. Nc4 {[%clk 0:01:08]}  Rc8 {[%clk 0:00:15]} 29. Bxh5 {[%clk 0:01:07]}  Ne6 {[%clk 0:00:12]} 30. Bg4 {[%clk 0:01:07]}  Qxc4 {[%clk 0:00:10]} 31. Qxc4 {[%clk 0:01:06]}  Rxc4 {[%clk 0:00:10]} 32. Bxe6 {[%clk 0:01:07]}  Rxc2 {[%clk 0:00:09]} 33. Ba1 {[%clk 0:01:06]}  Bc5 {[%clk 0:00:10]} 34. Bb3 {[%clk 0:01:01]}  Rd2 {[%clk 0:00:08]} 35. Bd5 {[%clk 0:01:01]}  f3 {[%clk 0:00:07]} 36. g4 {[%clk 0:01:00]}  b5 {[%clk 0:00:05]} 37. Bc3 {[%clk 0:00:59]}  Rc2 {[%clk 0:00:03]} 38. Be1 {[%clk 0:00:54]}  Bd4 {[%clk 0:00:03]} 39. Kh2 {[%clk 0:00:54]}  Rgc7 {[%clk 0:00:02]} 40. Kg3 {[%clk 0:00:54]} 1-0


[Site "https://www.chess.com"]

[Event "Titled Tuesday Blitz March 14 Late 2023"]
[White "Nakamura, Hikaru"]
[Black "Bortnyk, Olexandr"]
[WhiteFideId "2016192"]
[BlackFideId "14120828"]
[WhiteElo "2879"]
[BlackElo "2734"]
[Result "0-1"]
[Round "09"]
[TimeControl "180+2"]
[Date "2023.03.14"]
[WhiteClock "0:00:03"]
[BlackClock "0:00:37"]

1. e4 {[%clk 0:03:00]}  Nf6 {[%clk 0:02:59]} 2. e5 {[%clk 0:02:58]}  Nd5 {[%clk 0:03:00]} 3. d4 {[%clk 0:02:58]}  d6 {[%clk 0:03:00]} 4. c4 {[%clk 0:02:59]}  Nb6 {[%clk 0:03:00]} 5. f4 {[%clk 0:03:00]}  dxe5 {[%clk 0:03:01]} 6. fxe5 {[%clk 0:03:00]}  Bf5 {[%clk 0:03:01]} 7. Nc3 {[%clk 0:02:59]}  e6 {[%clk 0:03:01]} 8. Nf3 {[%clk 0:02:59]}  Bb4 {[%clk 0:03:01]} 9. Be2 {[%clk 0:02:57]}  c5 {[%clk 0:02:59]} 10. a3 {[%clk 0:02:54]}  Bxc3+ {[%clk 0:02:57]} 11. bxc3 {[%clk 0:02:54]}  O-O {[%clk 0:02:53]} 12. O-O {[%clk 0:02:49]}  Nc6 {[%clk 0:02:44]} 13. Bg5 {[%clk 0:02:30]}  Qd7 {[%clk 0:02:41]} 14. a4 {[%clk 0:02:21]}  Na5 {[%clk 0:02:32]} 15. dxc5 {[%clk 0:01:38]}  Qxd1 {[%clk 0:02:33]} 16. Rfxd1 {[%clk 0:01:37]}  Nbxc4 {[%clk 0:02:32]} 17. Nd4 {[%clk 0:01:17]}  Be4 {[%clk 0:02:27]} 18. Be7 {[%clk 0:01:09]}  Rfc8 {[%clk 0:02:20]} 19. Bd6 {[%clk 0:00:52]}  Ne3 {[%clk 0:02:12]} 20. Rd2 {[%clk 0:00:46]}  Nxg2 {[%clk 0:02:08]} 21. c4 {[%clk 0:00:41]}  Ne3 {[%clk 0:01:56]} 22. Rc1 {[%clk 0:00:38]}  Nf5 {[%clk 0:01:51]} 23. Nxf5 {[%clk 0:00:28]}  exf5 {[%clk 0:01:42]} 24. Rb2 {[%clk 0:00:27]}  a6 {[%clk 0:01:30]} 25. Kf2 {[%clk 0:00:26]}  h6 {[%clk 0:01:25]} 26. h4 {[%clk 0:00:24]}  Re8 {[%clk 0:01:25]} 27. Rg1 {[%clk 0:00:22]}  g6 {[%clk 0:01:17]} 28. Bc7 {[%clk 0:00:13]}  Nc6 {[%clk 0:01:15]} 29. Rxb7 {[%clk 0:00:13]}  Re7 {[%clk 0:01:14]} 30. e6 {[%clk 0:00:08]}  Rc8 {[%clk 0:01:10]} 31. Rb6 {[%clk 0:00:08]}  Rcxc7 {[%clk 0:01:07]} 32. exf7+ {[%clk 0:00:08]}  Kxf7 {[%clk 0:01:08]} 33. Rxa6 {[%clk 0:00:09]}  Ne5 {[%clk 0:01:06]} 34. h5 {[%clk 0:00:09]}  Rxc5 {[%clk 0:01:03]} 35. hxg6+ {[%clk 0:00:09]}  Kg7 {[%clk 0:01:03]} 36. a5 {[%clk 0:00:08]}  Nxc4 {[%clk 0:01:03]} 37. Rc1 {[%clk 0:00:08]}  Rec7 {[%clk 0:01:01]} 38. Ra1 {[%clk 0:00:08]}  f4 {[%clk 0:00:52]} 39. Re6 {[%clk 0:00:08]}  Bd5 {[%clk 0:00:51]} 40. Ra6 {[%clk 0:00:07]}  Ne5 {[%clk 0:00:51]} 41. Rd6 {[%clk 0:00:07]}  Be4 {[%clk 0:00:41]} 42. a6 {[%clk 0:00:07]}  Rc2 {[%clk 0:00:40]} 43. Ke1 {[%clk 0:00:02]}  f3 {[%clk 0:00:39]} 44. Bf1 {[%clk 0:00:02]}  f2+ {[%clk 0:00:37]} 45. Kd1 {[%clk 0:00:03]}  Bf3+ {[%clk 0:00:37]} 0-1


[Site "https://www.chess.com"]

[Event "Titled Tuesday Blitz March 14 Late 2023"]
[White "Duda, Jan-Krzysztof"]
[Black "Ibarra Jerez, Jose Carlos"]
[WhiteFideId "1170546"]
[BlackFideId "2226332"]
[WhiteElo "2790"]
[BlackElo "2638"]
[Result "1-0"]
[Round "09"]
[TimeControl "180+2"]
[Date "2023.03.14"]
[WhiteClock "0:00:05"]
[BlackClock "0:00:01"]

1. e4 {[%clk 0:03:00]}  c5 {[%clk 0:02:59]} 2. Nf3 {[%clk 0:03:01]}  e6 {[%clk 0:03:00]} 3. d4 {[%clk 0:03:00]}  cxd4 {[%clk 0:03:01]} 4. Nxd4 {[%clk 0:03:01]}  Bc5 {[%clk 0:03:01]} 5. Na3 {[%clk 0:02:46]}  a6 {[%clk 0:02:16]} 6. Nb3 {[%clk 0:02:40]}  Ba7 {[%clk 0:02:14]} 7. Bd3 {[%clk 0:01:58]}  Ne7 {[%clk 0:02:14]} 8. O-O {[%clk 0:01:58]}  O-O {[%clk 0:02:14]} 9. c4 {[%clk 0:01:56]}  f5 {[%clk 0:02:14]} 10. exf5 {[%clk 0:01:52]}  Nxf5 {[%clk 0:02:15]} 11. Nc2 {[%clk 0:01:52]}  Nc6 {[%clk 0:02:15]} 12. Bxf5 {[%clk 0:01:38]}  Rxf5 {[%clk 0:02:13]} 13. Be3 {[%clk 0:01:39]}  Bb8 {[%clk 0:02:08]} 14. Ncd4 {[%clk 0:01:38]}  Nxd4 {[%clk 0:01:48]} 15. Nxd4 {[%clk 0:01:39]}  Rf8 {[%clk 0:01:39]} 16. Qh5 {[%clk 0:01:20]}  b5 {[%clk 0:01:37]} 17. Rad1 {[%clk 0:01:04]}  Qf6 {[%clk 0:01:31]} 18. c5 {[%clk 0:00:55]}  Bb7 {[%clk 0:01:28]} 19. Rd2 {[%clk 0:00:38]}  Bd5 {[%clk 0:01:26]} 20. Rfd1 {[%clk 0:00:37]}  Bc7 {[%clk 0:01:17]} 21. Ne2 {[%clk 0:00:20]}  Qf5 {[%clk 0:00:54]} 22. Qxf5 {[%clk 0:00:17]}  Rxf5 {[%clk 0:00:55]} 23. Nc3 {[%clk 0:00:17]}  Bc6 {[%clk 0:00:55]} 24. f3 {[%clk 0:00:09]}  Ba5 {[%clk 0:00:44]} 25. Rc2 {[%clk 0:00:05]}  Bxc3 {[%clk 0:00:16]} 26. Rxc3 {[%clk 0:00:06]}  Bd5 {[%clk 0:00:15]} 27. Ra3 {[%clk 0:00:04]}  b4 {[%clk 0:00:14]} 28. Ra5 {[%clk 0:00:04]}  Rff8 {[%clk 0:00:09]} 29. Rd4 {[%clk 0:00:03]}  Rfb8 {[%clk 0:00:09]} 30. Bd2 {[%clk 0:00:04]}  b3 {[%clk 0:00:09]} 31. a3 {[%clk 0:00:03]}  Rb5 {[%clk 0:00:10]} 32. Rxb5 {[%clk 0:00:03]}  axb5 {[%clk 0:00:11]} 33. Bb4 {[%clk 0:00:02]}  Kf7 {[%clk 0:00:10]} 34. Kf2 {[%clk 0:00:03]}  g5 {[%clk 0:00:09]} 35. h4 {[%clk 0:00:02]}  h6 {[%clk 0:00:09]} 36. hxg5 {[%clk 0:00:02]}  hxg5 {[%clk 0:00:10]} 37. Bd2 {[%clk 0:00:03]}  Rg8 {[%clk 0:00:10]} 38. Rg4 {[%clk 0:00:03]}  Kf6 {[%clk 0:00:09]} 39. Ke2 {[%clk 0:00:03]}  Kf5 {[%clk 0:00:09]} 40. Kd3 {[%clk 0:00:03]}  e5 {[%clk 0:00:07]} 41. Kc3 {[%clk 0:00:02]}  Bc4 {[%clk 0:00:04]} 42. Kb4 {[%clk 0:00:02]}  Kf6 {[%clk 0:00:03]} 43. a4 {[%clk 0:00:02]}  Be6 {[%clk 0:00:03]} 44. axb5 {[%clk 0:00:03]}  Bxg4 {[%clk 0:00:03]} 45. fxg4 {[%clk 0:00:04]}  e4 {[%clk 0:00:03]} 46. Kxb3 {[%clk 0:00:03]}  Ke5 {[%clk 0:00:03]} 47. Kc4 {[%clk 0:00:03]}  Ra8 {[%clk 0:00:02]} 48. Bxg5 {[%clk 0:00:03]}  Ra1 {[%clk 0:00:02]} 49. Bd2 {[%clk 0:00:03]}  Rd1 {[%clk 0:00:02]} 50. Bc3+ {[%clk 0:00:03]}  Ke6 {[%clk 0:00:03]} 51. b6 {[%clk 0:00:03]}  d5+ {[%clk 0:00:03]} 52. Kb5 {[%clk 0:00:04]}  d4 {[%clk 0:00:02]} 53. b7 {[%clk 0:00:04]}  dxc3 {[%clk 0:00:03]} 54. b8=Q {[%clk 0:00:03]}  cxb2 {[%clk 0:00:04]} 55. Qe8+ {[%clk 0:00:03]}  Kf6 {[%clk 0:00:01]} 56. Qh8+ {[%clk 0:00:03]}  Kg5 {[%clk 0:00:01]} 57. Qxb2 {[%clk 0:00:04]}  Rd3 {[%clk 0:00:01]} 58. Qe5+ {[%clk 0:00:04]}  Kxg4 {[%clk 0:00:01]} 59. Qxe4+ {[%clk 0:00:05]} 1-0


[Site "https://www.chess.com"]

[Event "Titled Tuesday Blitz March 14 Late 2023"]
[White "Kozak, Adam"]
[Black "Lazavik, Denis"]
[WhiteFideId "753246"]
[BlackFideId "13515110"]
[WhiteElo "2469"]
[BlackElo "2560"]
[Result "0-1"]
[Round "09"]
[TimeControl "180+2"]
[Date "2023.03.14"]
[WhiteClock "0:00:10"]
[BlackClock "0:00:38"]

1. d4 {[%clk 0:02:46]}  Nf6 {[%clk 0:02:59]} 2. c4 {[%clk 0:02:46]}  e6 {[%clk 0:02:59]} 3. Nc3 {[%clk 0:02:45]}  Bb4 {[%clk 0:03:00]} 4. e3 {[%clk 0:02:46]}  O-O {[%clk 0:03:00]} 5. Bd3 {[%clk 0:02:46]}  c5 {[%clk 0:03:00]} 6. Ne2 {[%clk 0:02:45]}  cxd4 {[%clk 0:02:58]} 7. exd4 {[%clk 0:02:45]}  d5 {[%clk 0:02:59]} 8. cxd5 {[%clk 0:02:45]}  Nxd5 {[%clk 0:02:58]} 9. O-O {[%clk 0:02:45]}  Nc6 {[%clk 0:02:59]} 10. a3 {[%clk 0:02:44]}  Bd6 {[%clk 0:02:59]} 11. Re1 {[%clk 0:02:42]}  Qh4 {[%clk 0:02:59]} 12. g3 {[%clk 0:02:40]}  Qh5 {[%clk 0:02:58]} 13. Nxd5 {[%clk 0:02:40]}  exd5 {[%clk 0:02:59]} 14. Bf4 {[%clk 0:02:38]}  Be7 {[%clk 0:02:54]} 15. Qd2 {[%clk 0:02:33]}  Bh3 {[%clk 0:02:38]} 16. Be3 {[%clk 0:02:32]}  Bd6 {[%clk 0:02:37]} 17. Nc3 {[%clk 0:02:11]}  Qf3 {[%clk 0:02:34]} 18. Bf1 {[%clk 0:02:09]}  Bxf1 {[%clk 0:02:34]} 19. Rxf1 {[%clk 0:02:10]}  Rfe8 {[%clk 0:02:31]} 20. Qd1 {[%clk 0:02:08]}  Qxd1 {[%clk 0:02:11]} 21. Rfxd1 {[%clk 0:02:06]}  Ne7 {[%clk 0:02:11]} 22. Nb5 {[%clk 0:02:05]}  Bb8 {[%clk 0:02:09]} 23. Rac1 {[%clk 0:02:04]}  Nc6 {[%clk 0:01:50]} 24. Rc5 {[%clk 0:02:03]}  Rd8 {[%clk 0:01:48]} 25. Re1 {[%clk 0:01:37]}  f6 {[%clk 0:01:46]} 26. Nc3 {[%clk 0:01:36]}  Ne7 {[%clk 0:01:45]} 27. Rb5 {[%clk 0:01:27]}  Rd7 {[%clk 0:01:40]} 28. Na4 {[%clk 0:01:14]}  b6 {[%clk 0:01:36]} 29. Bd2 {[%clk 0:01:10]}  Kf7 {[%clk 0:01:34]} 30. Bb4 {[%clk 0:01:05]}  Nc6 {[%clk 0:01:32]} 31. Nc3 {[%clk 0:01:04]}  a5 {[%clk 0:00:58]} 32. Bxa5 {[%clk 0:00:22]}  Nxd4 {[%clk 0:00:39]} 33. Rxb6 {[%clk 0:00:18]}  Nf3+ {[%clk 0:00:39]} 34. Kf1 {[%clk 0:00:18]}  Nxe1 {[%clk 0:00:40]} 35. Kxe1 {[%clk 0:00:10]}  Bc7 {[%clk 0:00:40]} 36. Rb7 {[%clk 0:00:09]}  Rxa5 {[%clk 0:00:41]} 37. b4 {[%clk 0:00:09]}  Rxa3 {[%clk 0:00:38]} 38. Nb5 {[%clk 0:00:10]}  Re7+ {[%clk 0:00:39]} 39. Kf1 {[%clk 0:00:10]}  Ra1+ {[%clk 0:00:38]} 40. Kg2 {[%clk 0:00:10]}  Be5 {[%clk 0:00:38]} 41. Rb6 {[%clk 0:00:10]}  d4 {[%clk 0:00:38]} 0-1


[Site "https://www.chess.com"]

[Event "Titled Tuesday Blitz March 14 Late 2023"]
[White "Sarana, Alexey"]
[Black "Hansen, Eric"]
[WhiteFideId "24133795"]
[BlackFideId "2606771"]
[WhiteElo "2714"]
[BlackElo "2569"]
[Result "1-0"]
[Round "09"]
[TimeControl "180+2"]
[Date "2023.03.14"]
[WhiteClock "0:00:26"]
[BlackClock "0:00:01"]

1. c4 {[%clk 0:03:00]}  e5 {[%clk 0:02:58]} 2. Nf3 {[%clk 0:03:01]}  Nc6 {[%clk 0:02:57]} 3. g3 {[%clk 0:03:01]}  Bc5 {[%clk 0:02:33]} 4. Nc3 {[%clk 0:02:58]}  d6 {[%clk 0:02:33]} 5. Bg2 {[%clk 0:02:55]}  a6 {[%clk 0:02:32]} 6. e3 {[%clk 0:02:53]}  Ba7 {[%clk 0:02:31]} 7. h3 {[%clk 0:02:50]}  Nge7 {[%clk 0:02:29]} 8. d4 {[%clk 0:02:49]}  O-O {[%clk 0:02:28]} 9. O-O {[%clk 0:02:47]}  exd4 {[%clk 0:02:23]} 10. exd4 {[%clk 0:02:47]}  Nf5 {[%clk 0:02:24]} 11. d5 {[%clk 0:02:44]}  Ne5 {[%clk 0:02:14]} 12. Nxe5 {[%clk 0:02:43]}  dxe5 {[%clk 0:02:15]} 13. Qd3 {[%clk 0:02:36]}  Nd6 {[%clk 0:02:11]} 14. Be3 {[%clk 0:02:33]}  Bf5 {[%clk 0:01:44]} 15. Qe2 {[%clk 0:02:32]}  Bd4 {[%clk 0:01:45]} 16. c5 {[%clk 0:02:26]}  Bxc3 {[%clk 0:01:25]} 17. bxc3 {[%clk 0:02:25]}  Ne4 {[%clk 0:01:11]} 18. Qb2 {[%clk 0:02:18]}  Qxd5 {[%clk 0:01:00]} 19. c4 {[%clk 0:02:13]}  Qe6 {[%clk 0:00:50]} 20. Qxb7 {[%clk 0:02:12]}  Rab8 {[%clk 0:00:46]} 21. Qxc7 {[%clk 0:02:10]}  Nc3 {[%clk 0:00:42]} 22. Qa5 {[%clk 0:01:55]}  Ne2+ {[%clk 0:00:29]} 23. Kh2 {[%clk 0:01:54]}  Bd3 {[%clk 0:00:30]} 24. Rfe1 {[%clk 0:01:45]}  Rb2 {[%clk 0:00:21]} 25. Rad1 {[%clk 0:01:44]}  e4 {[%clk 0:00:20]} 26. c6 {[%clk 0:01:44]}  Qxc4 {[%clk 0:00:16]} 27. c7 {[%clk 0:00:52]}  Rxa2 {[%clk 0:00:11]} 28. Qe5 {[%clk 0:00:50]}  f6 {[%clk 0:00:03]} 29. Qd6 {[%clk 0:00:43]}  Rc2 {[%clk 0:00:01]} 30. Rxd3 {[%clk 0:00:26]}  Qxd3 {[%clk 0:00:01]} 31. Qe6+ {[%clk 0:00:26]}  Kh8 {[%clk 0:00:01]} 32. Bxe4 {[%clk 0:00:26]} 1-0


[Site "https://www.chess.com"]

[Event "Titled Tuesday Blitz March 14 Late 2023"]
[White "Mirzoev, Azer"]
[Black "Makhnev, Denis"]
[WhiteFideId "13400304"]
[BlackFideId "13707647"]
[WhiteElo "2525"]
[BlackElo "2525"]
[Result "0-1"]
[Round "09"]
[TimeControl "180+2"]
[Date "2023.03.14"]
[WhiteClock "0:00:04"]
[BlackClock "0:00:18"]

1. d4 {[%clk 0:03:00]}  Nf6 {[%clk 0:03:00]} 2. Nf3 {[%clk 0:03:00]}  e6 {[%clk 0:03:00]} 3. Bg5 {[%clk 0:02:58]}  h6 {[%clk 0:02:57]} 4. Bh4 {[%clk 0:02:58]}  Be7 {[%clk 0:02:55]} 5. e3 {[%clk 0:02:57]}  b6 {[%clk 0:02:53]} 6. c4 {[%clk 0:02:57]}  Bb7 {[%clk 0:02:54]} 7. Nc3 {[%clk 0:02:58]}  O-O {[%clk 0:02:50]} 8. Qc2 {[%clk 0:02:56]}  c5 {[%clk 0:02:46]} 9. dxc5 {[%clk 0:02:54]}  bxc5 {[%clk 0:02:45]} 10. Be2 {[%clk 0:02:54]}  d6 {[%clk 0:02:45]} 11. O-O {[%clk 0:02:54]}  Nbd7 {[%clk 0:02:46]} 12. Rfd1 {[%clk 0:02:55]}  Qb6 {[%clk 0:02:46]} 13. h3 {[%clk 0:02:51]}  Rfd8 {[%clk 0:02:45]} 14. Rac1 {[%clk 0:02:44]}  Bc6 {[%clk 0:02:45]} 15. Nd2 {[%clk 0:02:38]}  Ne5 {[%clk 0:02:41]} 16. Bg3 {[%clk 0:02:33]}  Rab8 {[%clk 0:02:07]} 17. b3 {[%clk 0:02:31]}  Qb7 {[%clk 0:02:04]} 18. Bf1 {[%clk 0:02:06]}  a6 {[%clk 0:02:02]} 19. Ne2 {[%clk 0:01:54]}  g5 {[%clk 0:01:58]} 20. f3 {[%clk 0:01:31]}  Ng6 {[%clk 0:01:49]} 21. Bf2 {[%clk 0:01:25]}  Bf8 {[%clk 0:01:48]} 22. Ng3 {[%clk 0:01:18]}  Bg7 {[%clk 0:01:46]} 23. Nb1 {[%clk 0:01:15]}  h5 {[%clk 0:01:42]} 24. Nc3 {[%clk 0:01:05]}  h4 {[%clk 0:01:41]} 25. Nge2 {[%clk 0:01:04]}  Rd7 {[%clk 0:01:33]} 26. Rd2 {[%clk 0:01:02]}  Rbd8 {[%clk 0:01:33]} 27. Rcd1 {[%clk 0:01:02]}  Bh6 {[%clk 0:01:09]} 28. Nc1 {[%clk 0:00:57]}  Nh5 {[%clk 0:00:55]} 29. Bd3 {[%clk 0:00:54]}  f5 {[%clk 0:00:55]} 30. N1e2 {[%clk 0:00:37]}  Ne5 {[%clk 0:00:55]} 31. e4 {[%clk 0:00:31]}  g4 {[%clk 0:00:35]} 32. fxg4 {[%clk 0:00:29]}  fxg4 {[%clk 0:00:34]} 33. Bxh4 {[%clk 0:00:28]}  Rf8 {[%clk 0:00:34]} 34. Ng3 {[%clk 0:00:24]}  Nxg3 {[%clk 0:00:29]} 35. Bxg3 {[%clk 0:00:24]}  Bxd2 {[%clk 0:00:28]} 36. Qxd2 {[%clk 0:00:23]}  gxh3 {[%clk 0:00:28]} 37. Bxe5 {[%clk 0:00:20]}  dxe5 {[%clk 0:00:27]} 38. gxh3 {[%clk 0:00:20]}  Rg7+ {[%clk 0:00:26]} 39. Kh2 {[%clk 0:00:20]}  Qc7 {[%clk 0:00:23]} 40. Qe3 {[%clk 0:00:19]}  Qe7 {[%clk 0:00:20]} 41. Rd2 {[%clk 0:00:18]}  Qg5 {[%clk 0:00:19]} 42. Qxg5 {[%clk 0:00:18]}  Rxg5 {[%clk 0:00:20]} 43. Re2 {[%clk 0:00:17]}  Rf3 {[%clk 0:00:19]} 44. Rd2 {[%clk 0:00:16]}  Rgg3 {[%clk 0:00:19]} 45. Be2 {[%clk 0:00:09]}  Rxc3 {[%clk 0:00:19]} 46. Bg4 {[%clk 0:00:09]}  Bxe4 {[%clk 0:00:18]} 47. Bxe6+ {[%clk 0:00:09]}  Kf8 {[%clk 0:00:19]} 48. Bg4 {[%clk 0:00:08]}  Rge3 {[%clk 0:00:17]} 49. Rf2+ {[%clk 0:00:08]}  Ke7 {[%clk 0:00:17]} 50. Bh5 {[%clk 0:00:04]}  Rc2 {[%clk 0:00:17]} 51. Rxc2 {[%clk 0:00:04]}  Bxc2 {[%clk 0:00:18]} 0-1


[Site "https://www.chess.com"]

[Event "Titled Tuesday Blitz March 14 Late 2023"]
[White "Chigaev, Maksim"]
[Black "Subelj, Jan"]
[WhiteFideId "4108116"]
[BlackFideId "14618583"]
[WhiteElo "2547"]
[BlackElo "2474"]
[Result "1-0"]
[Round "09"]
[TimeControl "180+2"]
[Date "2023.03.14"]
[WhiteClock "0:02:07"]
[BlackClock "0:01:44"]

1. Nf3 {[%clk 0:03:00]}  Nf6 {[%clk 0:02:53]} 2. g3 {[%clk 0:02:59]}  b6 {[%clk 0:02:52]} 3. Bg2 {[%clk 0:03:00]}  Bb7 {[%clk 0:02:53]} 4. O-O {[%clk 0:03:00]}  g6 {[%clk 0:02:54]} 5. c4 {[%clk 0:02:59]}  c5 {[%clk 0:02:50]} 6. b3 {[%clk 0:02:53]}  Bg7 {[%clk 0:02:48]} 7. Bb2 {[%clk 0:02:54]}  O-O {[%clk 0:02:46]} 8. d4 {[%clk 0:02:54]}  cxd4 {[%clk 0:02:45]} 9. Qxd4 {[%clk 0:02:55]}  Nc6 {[%clk 0:02:43]} 10. Qf4 {[%clk 0:02:55]}  d5 {[%clk 0:02:27]} 11. Rd1 {[%clk 0:02:49]}  Qe8 {[%clk 0:02:14]} 12. cxd5 {[%clk 0:02:23]}  Nxd5 {[%clk 0:02:12]} 13. Qc1 {[%clk 0:02:19]}  Nf6 {[%clk 0:01:53]} 14. Nc3 {[%clk 0:02:19]}  Rc8 {[%clk 0:01:52]} 15. Qf4 {[%clk 0:02:09]}  Nb4 {[%clk 0:01:44]} 16. Qxb4 {[%clk 0:02:07]} 1-0


[Site "https://www.chess.com"]